fUST/lending_fUST_20250928
["ID","MTS","AMOUNT","RATE_DAILY","PERIOD"]
[388216777,1759044647363,-430.07499097,0.00035616,9]
[388216778,1759044647372,-480.0,0.00035616,9]
[388216779,1759044647382,-841.57,0.00035616,9]
[388216781,1759044647392,-1397.65,0.00035616,9]
[388216783,1759044647401,-480.0,0.00035616,9]
[388216785,1759044647411,-1372.82,0.00035616,9]
[388216787,1759044647422,-649.02,0.00035616,9]
[388216789,1759044647431,-480.0,0.00035616,9]
[388216791,1759044647441,-2089.22,0.00035616,9]
[388216792,1759044647451,-480.0,0.00035616,9]
[388216794,1759044647461,-480.0,0.00035616,9]
[388216795,1759044647470,-480.26658388,0.00035616,9]
[388216796,1759044647480,-480.0,0.00035616,9]
[388216797,1759044647489,-480.0,0.00035616,9]
[388216798,1759044647500,-480.80900371,0.00035616,9]
[388216799,1759044647509,-480.0,0.00035616,9]
[388216800,1759044647519,-2166.38,0.00035616,9]
[388216801,1759044647529,-480.0,0.00035616,9]
[388216802,1759044647538,-480.0,0.00035616,9]
[388216803,1759044647548,-480.0,0.00035616,9]
[388216804,1759044647558,-480.0,0.00035616,9]
[388216805,1759044647567,-430.97757584,0.00035616,9]
[388216806,1759044647587,-782.92,0.00035616,9]
[388216807,1759044647599,-480.0,0.00035616,9]
[388216808,1759044647609,-1023.9,0.00035616,9]
[388216809,1759044647619,-480.0,0.00035616,9]
[388216810,1759044647630,-829.45,0.00035616,9]
[388216811,1759044647640,-480.0,0.00035616,9]
[388216812,1759044647650,-480.0,0.00035616,9]
[388216813,1759044647660,-1632.84,0.00035616,9]
[388216814,1759044647671,-480.0,0.00035616,9]
[388216815,1759044647682,-480.0,0.00035616,9]
[388216816,1759044647692,-480.0,0.00035616,9]
[388216817,1759044647702,-644.83,0.00035616,9]
[388216818,1759044647713,-1004.71,0.00035616,9]
[388216819,1759044647723,-776.16,0.00035616,9]
[388216820,1759044647732,-480.0,0.00035616,9]
[388216821,1759044647743,-480.0,0.00035616,9]
[388216822,1759044647753,-480.0,0.00035616,9]
[388216823,1759044647763,-865.17,0.00035616,9]
[388216824,1759044647773,-480.0,0.00035616,9]
[388216825,1759044647783,-688.02,0.00035616,9]
[388216826,1759044647794,-604.00195036,0.00035616,9]
[388216827,1759044647804,-480.0,0.00035616,9]
[388216830,1759044648013,-480.0,0.00035616,9]
[388216831,1759044648034,-2844.2,0.00035616,9]
[388216832,1759044648044,-480.0,0.00035616,9]
[388216833,1759044648054,-480.0,0.00035616,9]
[388216834,1759044648063,-552.46,0.00035616,9]
[388216835,1759044648072,-480.0,0.00035616,9]
[388216836,1759044648082,-621.80250309,0.00035616,9]
[388216837,1759044648092,-480.0,0.00035616,9]
[388216838,1759044648101,-480.0,0.00035616,9]
[388216839,1759044648110,-480.0,0.00035616,9]
[388216840,1759044648120,-500.0,0.00035616,9]
[388216841,1759044648129,-500.0,0.00035616,9]
[388216842,1759044648139,-500.0,0.00035616,9]
[388216843,1759044648149,-500.0,0.00035616,9]
[388216844,1759044648158,-500.0,0.00035616,9]
[388216845,1759044648167,-500.0,0.00035616,9]
[388216846,1759044648176,-822.61,0.00035616,9]
[388216847,1759044648186,-500.0,0.00035616,9]
[388216848,1759044648195,-500.0,0.00035616,9]
[388216849,1759044648205,-336.04609607,0.00035616,9]
[388216850,1759044648215,-480.0,0.00035616,9]
[388216851,1759044648224,-500.0,0.00035616,9]
[388216852,1759044648233,-593.05,0.00035616,9]
[388216853,1759044648243,-480.0,0.00035616,9]
[388216854,1759044648252,-480.0,0.00035616,9]
[388216855,1759044648262,-480.0,0.00035616,9]
[388216856,1759044648272,-480.0,0.00035616,9]
[388216857,1759044648282,-524.7,0.00035616,9]
[388216858,1759044648292,-500.0,0.00035616,9]
[388216859,1759044648302,-500.0,0.00035616,9]
[388216860,1759044648312,-500.0,0.00035616,9]
[388216861,1759044648322,-555.45196873,0.00035616,9]
[388216862,1759044648331,-480.0,0.00035616,9]
[388216863,1759044648341,-1966.35,0.00035616,9]
[388216864,1759044648351,-480.0,0.00035616,9]
[388216865,1759044648361,-480.66597346,0.00035616,9]
[388216866,1759044648372,-480.0,0.00035616,9]
[388216867,1759044648382,-480.0,0.00035616,9]
[388216868,1759044648391,-480.0,0.00035616,9]
[388216869,1759044648400,-480.0,0.00035616,9]
[388216870,1759044648410,-480.0,0.00035616,9]
[388216871,1759044648419,-908.25,0.00035616,9]
[388216872,1759044648429,-480.0,0.00035616,9]
[388216873,1759044648438,-480.0,0.00035616,9]
[388216874,1759044648448,-480.0,0.00035616,9]
[388216875,1759044648458,-1028.73,0.00035616,9]
[388216876,1759044648468,-835.68,0.00035616,9]
[388216877,1759044648477,-480.0,0.00035616,9]
[388216878,1759044648487,-480.0,0.00035616,9]
[388216879,1759044648496,-4295.32,0.00035616,9]
[388216880,1759044648507,-1659.86,0.00035616,9]
[388216881,1759044648516,-4230.19,0.00035616,9]
[388216882,1759044648525,-920.91,0.00035616,9]
[388216883,1759044648535,-501.96,0.00035616,9]
[388216884,1759044648544,-480.0,0.00035616,9]
[388216885,1759044648553,-649.82,0.00035616,9]
[388216886,1759044648563,-9162.48,0.00035616,9]
[388216887,1759044648572,-482.03,0.00035616,9]
[388216888,1759044648582,-480.0,0.00035616,9]
[388216889,1759044648591,-1241.38,0.00035616,9]
[388216890,1759044648601,-874.19,0.00035616,9]
[388216891,1759044648610,-480.0,0.00035616,9]
[388216892,1759044648619,-480.0,0.00035616,9]
[388216893,1759044648628,-999.0,0.00035616,120]
[388216894,1759044648638,-480.0,0.00035616,9]
[388216895,1759044648648,-3083.2,0.00035616,9]
[388216896,1759044648657,-480.0,0.00035616,9]
[388216897,1759044648667,-480.0,0.00035616,9]
[388216898,1759044648676,-583.08,0.00035616,9]
[388216899,1759044648692,-480.0,0.00035616,9]
[388216900,1759044648702,-480.0,0.00035616,9]
[388216901,1759044648711,-480.0,0.00035616,9]
[388216902,1759044648720,-480.0,0.00035616,9]
[388216903,1759044648729,-780.84,0.00035616,9]
[388216904,1759044648738,-3202.49,0.00035616,9]
[388216905,1759044648748,-480.0,0.00035616,9]
[388216906,1759044648758,-1030.32,0.00035616,9]
[388216907,1759044648767,-1000.0,0.00035616,9]
[388216908,1759044648779,-480.0,0.00035616,9]
[388216909,1759044648789,-480.0,0.00035616,9]
[388216910,1759044648798,-586.9,0.00035616,9]
[388216911,1759044648807,-480.0,0.00035616,9]
[388216912,1759044648819,-480.0,0.00035616,9]
[388216913,1759044648828,-703.91,0.00035616,9]
[388216914,1759044648837,-1375.0,0.00035616,9]
[388216915,1759044648847,-480.0,0.00035616,9]
[388216916,1759044648856,-480.0,0.00035616,9]
[388216917,1759044648866,-3612.7,0.00035616,9]
[388216918,1759044648876,-1909.08,0.00035616,9]
[388216919,1759044648885,-480.0,0.00035616,9]
[388216920,1759044648895,-712.34,0.00035616,9]
[388216921,1759044648904,-480.0,0.00035616,9]
[388216922,1759044648914,-480.0,0.00035616,9]
[388216923,1759044648924,-10184.22,0.00035616,9]
[388216924,1759044648933,-677.74,0.00035616,9]
[388216925,1759044648943,-484.46,0.00035616,9]
[388216926,1759044648952,-480.0,0.00035616,9]
[388216927,1759044648961,-1554.86,0.00035616,9]
[388216928,1759044648970,-900.91,0.00035616,9]
[388216929,1759044648980,-513.38,0.00035616,9]
[388216930,1759044648989,-480.0,0.00035616,9]
[388216931,1759044648999,-480.0,0.00035616,9]
[388216932,1759044649009,-992.79,0.00035616,9]
[388216933,1759044649019,-480.0,0.00035616,9]
[388216934,1759044649028,-1015.5,0.00035616,9]
[388216935,1759044649038,-2807.82,0.00035616,9]
[388216936,1759044649047,-722.48,0.00035616,9]
[388216937,1759044649056,-480.0,0.00035616,9]
[388216938,1759044649066,-480.0,0.00035616,9]
[388216939,1759044649075,-1142.03,0.00035616,9]
[388216940,1759044649084,-2509.13,0.00035616,9]
[388216941,1759044649093,-1154.48,0.00035616,9]
[388216942,1759044649102,-480.0,0.00035616,9]
[388216943,1759044649111,-480.0,0.00035616,9]
[388216944,1759044649121,-480.0,0.00035616,9]
[388216945,1759044649130,-591.12,0.00035616,9]
[388216946,1759044649139,-480.0,0.00035616,2]
[388216947,1759044649149,-754.29,0.00035616,9]
[388216948,1759044649158,-480.0,0.00035616,9]
[388216949,1759044649168,-480.0,0.00035616,9]
[388216950,1759044649177,-480.0,0.00035616,9]
[388216951,1759044649186,-480.0,0.00035616,9]
[388216952,1759044649195,-617.62,0.00035616,9]
[388216953,1759044649205,-1083.19,0.00035616,9]
[388216954,1759044649215,-480.89892292,0.00035616,9]
[388216955,1759044649224,-1622.67,0.00035616,9]
[388216956,1759044649233,-391.7573799,0.00035616,9]
[388216957,1759044649243,-480.0,0.00035616,9]
[388216958,1759044649252,-677.52,0.00035616,9]
[388216959,1759044649261,-480.0,0.00035616,9]
[388216960,1759044649271,-1295.05,0.00035616,9]
[388216961,1759044649280,-480.0,0.00035616,9]
[388216962,1759044649289,-480.0,0.00035616,9]
[388216963,1759044649298,-670.17,0.00035616,9]
[388216964,1759044649308,-480.0,0.00035616,9]
[388216965,1759044649318,-480.0,0.00035616,9]
[388216966,1759044649327,-880.11,0.00035616,9]
[388216967,1759044649336,-666.41,0.00035616,9]
[388216968,1759044649346,-1094.06,0.00035616,9]
[388216969,1759044649356,-7456.44,0.00035616,3]
[388216970,1759044649366,-773.93,0.00035616,9]
[388216971,1759044649375,-597.94514414,0.00035616,9]
[388216972,1759044649384,-480.0,0.00035616,9]
[388216973,1759044649394,-2754.5,0.00035616,9]
[388216974,1759044649403,-480.0,0.00035616,9]
[388216975,1759044649413,-500.64207955,0.00035616,9]
[388216976,1759044649422,-480.0,0.00035616,9]
[388216977,1759044649431,-480.0,0.00035616,9]
[388216978,1759044649440,-480.0,0.00035616,9]
[388216979,1759044649449,-480.0,0.00035616,9]
[388216980,1759044649460,-867.04,0.00035616,9]
[388216981,1759044649469,-1200.92,0.00035616,9]
[388216982,1759044649479,-480.0,0.00035616,9]
[388216983,1759044649488,-480.0,0.00035616,9]
[388216984,1759044649498,-480.0,0.00035616,9]
[388216985,1759044649508,-480.0,0.00035616,9]
[388216986,1759044649518,-480.0,0.00035616,9]
[388216987,1759044649528,-480.0,0.00035616,9]
[388216988,1759044649538,-535.42,0.00035616,9]
[388216989,1759044649547,-648.41,0.00035616,9]
[388216990,1759044649557,-480.0,0.00035616,9]
[388216991,1759044649566,-5344.58,0.00035616,9]
[388216992,1759044649576,-4550.13,0.00035616,9]
[388216993,1759044649585,-4334.24,0.00035616,9]
[388216994,1759044649595,-550.1,0.00035616,9]
[388216995,1759044649604,-480.0,0.00035616,9]
[388216996,1759044649614,-480.0,0.00035616,9]
[388216997,1759044649623,-1051.22,0.00035616,9]
[388216998,1759044649632,-665.05,0.00035616,9]
[388216999,1759044649641,-781.78,0.00035616,9]
[388217000,1759044649651,-480.0,0.00035616,9]
[388217001,1759044649661,-748.06,0.00035616,9]
[388217002,1759044649670,-868.8,0.00035616,9]
[388217003,1759044649680,-480.00019848,0.00035616,9]
[388217004,1759044649690,-1892.82,0.00035616,9]
[388217005,1759044649699,-480.0,0.00035616,7]
[388217006,1759044649708,-480.80255179,0.00035616,9]
[388217007,1759044649718,-691.58,0.00035616,9]
[388217008,1759044649728,-691.58,0.00035616,9]
[388217009,1759044649737,-691.58,0.00035616,9]
[388217010,1759044649747,-888.6,0.00035616,9]
[388217011,1759044649756,-691.58,0.00035616,9]
[388217012,1759044649766,-691.58,0.00035616,9]
[388217013,1759044649775,-691.58,0.00035616,9]
[388217014,1759044649785,-691.58,0.00035616,9]
[388217015,1759044649794,-1225.08,0.00035616,9]
[388217016,1759044649803,-691.58,0.00035616,9]
[388217017,1759044649814,-691.58,0.00035616,9]
[388217018,1759044649825,-691.58,0.00035616,9]
[388217019,1759044649835,-691.58,0.00035616,9]
[388217020,1759044649844,-1103.08,0.00035616,9]
[388217021,1759044649855,-691.58,0.00035616,9]
[388217022,1759044649865,-691.58,0.00035616,9]
[388217023,1759044649874,-691.58,0.00035616,9]
[388217024,1759044649883,-691.58,0.00035616,9]
[388217025,1759044649895,-691.58,0.00035616,9]
[388217026,1759044649904,-691.58,0.00035616,9]
[388217027,1759044649914,-691.58,0.00035616,9]
[388217028,1759044649923,-691.58,0.00035616,9]
[388217029,1759044649933,-691.58,0.00035616,9]
[388217030,1759044649942,-691.58,0.00035616,9]
[388217031,1759044649952,-691.58,0.00035616,9]
[388217032,1759044649962,-691.58,0.00035616,9]
[388217033,1759044649971,-588.18,0.00035616,9]
[388217034,1759044649980,-691.66332607,0.00035616,9]
[388217035,1759044649990,-994.78,0.00035616,9]
[388217036,1759044649999,-480.0,0.00035616,9]
[388217037,1759044650010,-480.0,0.00035616,9]
[388217038,1759044650019,-608.23,0.00035616,9]
[388217039,1759044650029,-480.0,0.00035616,9]
[388217040,1759044650038,-480.0,0.00035616,9]
[388217041,1759044650048,-2399.65,0.00035616,9]
[388217042,1759044650058,-854.57,0.00035616,9]
[388217043,1759044650067,-1044.57,0.00035616,9]
[388217044,1759044650077,-3244.73,0.00035616,9]
[388217045,1759044650086,-1199.0,0.00035616,9]
[388217046,1759044650096,-480.0,0.00035616,9]
[388217047,1759044650105,-480.0,0.00035616,9]
[388217048,1759044650115,-480.0,0.00035616,9]
[388217049,1759044650124,-480.0,0.00035616,9]
[388217050,1759044650133,-480.0,0.00035616,9]
[388217051,1759044650143,-817.44,0.00035616,9]
[388217052,1759044650152,-912.54,0.00035616,9]
[388217053,1759044650162,-480.0,0.00035616,9]
[388217054,1759044650171,-480.62619393,0.00035616,9]
[388217055,1759044650181,-480.0,0.00035616,9]
[388217056,1759044650191,-356.69585157,0.00035616,9]
[388217057,1759044650200,-618.74,0.00035616,9]
[388217058,1759044650210,-1335.51,0.00035616,9]
[388217059,1759044650220,-2505.32,0.00035616,9]
[388217060,1759044650229,-480.0,0.00035616,9]
[388217061,1759044650238,-470.90641317,0.00035616,9]
[388217062,1759044650247,-480.0,0.00035616,9]
[388217063,1759044650257,-480.0,0.00035616,9]
[388217064,1759044650266,-1081.31,0.00035616,9]
[388217065,1759044650275,-300.41114065,0.00035616,9]
[388217066,1759044650284,-480.89915863,0.00035616,9]
[388217067,1759044650294,-480.0,0.00035616,9]
[388217068,1759044650304,-1046.65,0.00035616,9]
[388217069,1759044650313,-1775.28,0.00035616,9]
[388217070,1759044650323,-2224.04,0.00035616,9]
[388217071,1759044650332,-2936.2,0.00035616,9]
[388217072,1759044650342,-1899.47,0.00035616,9]
[388217073,1759044650353,-3680.23,0.00035616,9]
[388217074,1759044650408,-480.0,0.00035616,9]
[388217075,1759044650417,-6149.46,0.00035616,9]
[388217076,1759044650428,-9730.87,0.00035616,9]
[388217077,1759044650438,-1335.65,0.00035616,9]
[388217078,1759044650448,-2625.78,0.00035616,9]
[388217079,1759044650457,-593.52,0.00035616,9]
[388217080,1759044650467,-1226.35,0.00035616,9]
[388217081,1759044650476,-1137.49,0.00035616,9]
[388217082,1759044650486,-4572.54,0.00035616,9]
[388217083,1759044650496,-1096.04,0.00035616,9]
[388217084,1759044650506,-2676.22,0.00035616,9]
[388217085,1759044650515,-469.23323398,0.00035616,9]
[388217086,1759044650525,-480.0,0.00035616,9]
[388217087,1759044650534,-1864.81,0.00035616,9]
[388217088,1759044650544,-480.0,0.00035616,9]
[388217089,1759044650553,-975.02,0.00035616,9]
[388217090,1759044650563,-969.67,0.00035616,9]
[388217091,1759044650572,-480.0,0.00035616,9]
[388217092,1759044650581,-1119.22,0.00035616,9]
[388217093,1759044650591,-266.12751506,0.00035616,9]
[388217094,1759044650600,-5771.08,0.00035616,9]
[388217095,1759044650609,-170.30743782,0.00035616,9]
[388217096,1759044650619,-480.0,0.00035616,9]
[388217097,1759044650628,-5174.09,0.00035616,9]
[388217098,1759044650638,-696.72,0.00035616,9]
[388217099,1759044650647,-480.0,0.00035616,9]
[388217100,1759044650656,-1070.79,0.00035616,9]
[388217101,1759044650665,-914.5,0.00035616,9]
[388217102,1759044650675,-18376.28,0.00035616,9]
[388217103,1759044650684,-580.98,0.00035616,9]
[388217104,1759044650694,-480.0,0.00035616,9]
[388217105,1759044650703,-1116.74,0.00035616,9]
[388217106,1759044650713,-1782.9,0.00035616,9]
[388217107,1759044650722,-480.0,0.00035616,9]
[388217108,1759044650732,-1120.68,0.00035616,9]
[388217109,1759044650741,-684.86,0.00035616,9]
[388217110,1759044650750,-1099.87,0.00035616,9]
[388217111,1759044650763,-480.0,0.00035616,9]
[388217112,1759044650772,-941.46,0.00035616,9]
[388217113,1759044650782,-659.79,0.00035616,9]
[388217114,1759044650792,-1462.23,0.00035616,9]
[388217115,1759044650802,-480.0,0.00035616,9]
[388217116,1759044650812,-2188.71,0.00035616,9]
[388217117,1759044650827,-480.0,0.00035616,9]
[388217118,1759044650836,-927.64,0.00035616,9]
[388217119,1759044650846,-480.0,0.00035616,9]
[388217120,1759044650855,-480.0,0.00035616,9]
[388217121,1759044650865,-480.0,0.00035616,9]
[388217122,1759044650874,-3747.57,0.00035616,9]
[388217123,1759044650883,-525.01,0.00035616,9]
[388217124,1759044650892,-480.0,0.00035616,9]
[388217125,1759044650901,-456.41322415,0.00035616,9]
[388217126,1759044650910,-695.93,0.00035616,9]
[388217127,1759044650919,-564.77598972,0.00035616,9]
[388217128,1759044650929,-973.2,0.00035616,9]
[388217129,1759044650938,-480.0,0.00035616,9]
[388217130,1759044650948,-1227.62,0.00035616,9]
[388217131,1759044650957,-480.0,0.00035616,9]
[388217132,1759044650966,-480.0,0.00035616,9]
[388217133,1759044650975,-532.24,0.00035616,9]
[388217134,1759044650984,-762.02,0.00035616,9]
[388217135,1759044650994,-1475.03,0.00035616,9]
[388217136,1759044651006,-1528.64,0.00035616,9]
[388217137,1759044651015,-480.0,0.00035616,9]
[388217138,1759044651024,-996.79,0.00035616,9]
[388217139,1759044651033,-1236.66,0.00035616,9]
[388217140,1759044651042,-451.15928512,0.00035616,9]
[388217141,1759044651051,-1064.98,0.00035616,9]
[388217142,1759044651060,-1024.67,0.00035616,9]
[388217143,1759044651069,-480.0,0.00035616,9]
[388217144,1759044651078,-674.87,0.00035616,9]
[388217145,1759044651087,-480.0,0.00035616,9]
[388217146,1759044651097,-480.0,0.00035616,9]
[388217147,1759044651106,-480.0,0.00035616,9]
[388217148,1759044651115,-4305.51,0.00035616,9]
[388217149,1759044651124,-480.83657854,0.00035616,9]
[388217150,1759044651133,-593.74,0.00035616,9]
[388217151,1759044651144,-480.0,0.00035616,9]
[388217152,1759044651153,-480.0,0.00035616,9]
[388217153,1759044651162,-519.61,0.00035616,9]
[388217154,1759044651171,-480.0,0.00035616,9]
[388217155,1759044651181,-500.0,0.00035655,120]
[388217156,1759044651191,-500.0,0.00035673,5]
[388217157,1759044651200,-500.0,0.00035673,5]
[388217158,1759044651210,-500.0,0.00035673,5]
[388217159,1759044651220,-500.0,0.00035673,5]
[388217160,1759044651230,-500.0,0.00035673,5]
[388217161,1759044651241,-500.0,0.00035673,5]
[388217162,1759044651250,-500.0,0.00035673,5]
[388217163,1759044651262,-500.0,0.00035673,5]
[388217164,1759044651272,-500.0,0.00035673,5]
[388217165,1759044651281,-500.0,0.00035673,5]
[388217166,1759044651290,-500.0,0.00035673,5]
[388217167,1759044651299,-500.0,0.00035673,5]
[388217168,1759044651309,-529.59004908,0.00035673,5]
[388217169,1759044651319,-500.0,0.00035673,5]
[388217170,1759044651328,-500.0,0.00035673,5]
[388217171,1759044651338,-500.0,0.00035673,5]
[388217172,1759044651347,-500.0,0.00035673,5]
[388217173,1759044651357,-500.0,0.00035673,5]
[388217174,1759044651366,-500.0,0.00035673,5]
[388217175,1759044651375,-400.0,0.00035673,5]
[388217176,1759044651385,-500.0,0.00035673,5]
[388217177,1759044651395,-150.0,0.00035673,5]
[388217178,1759044651405,-500.0,0.00035673,5]
[388217179,1759044651415,-500.0,0.00035673,5]
[388217180,1759044651424,-500.0,0.00035673,5]
[388217181,1759044651434,-500.0,0.00035673,5]
[388217182,1759044651444,-151.0,0.00035678,30]
[388217183,1759044651453,-24079.78110564,0.000357,7]
[388217184,1759044651802,-106286.34241222,0.000357,7]
[388217185,1759044651811,-189.35579204,0.000357,7]
[388217186,1759044651825,-500.0,0.00035767,2]
[388217187,1759044651835,-500.0,0.00035767,2]
[388217188,1759044651844,-500.0,0.00035767,2]
[388217189,1759044651854,-151.0,0.00035767,2]
[388217190,1759044651866,-500.83231785,0.00035767,2]
[388217191,1759044651876,-500.0,0.00035767,2]
[388217192,1759044651885,-500.0,0.00035767,2]
[388217193,1759044651896,-500.0,0.00035767,2]
[388217194,1759044651908,-151.0,0.00035767,2]
[388217195,1759044651918,-500.0,0.00035767,2]
[388217196,1759044651928,-500.0,0.00035767,2]
[388217197,1759044651937,-151.0,0.00035767,2]
[388217198,1759044651947,-151.0,0.00035767,2]
[388217199,1759044651956,-271.97284881,0.00035767,2]
[388217200,1759044651966,-151.0,0.00035767,2]
[388217201,1759044651975,-500.0,0.00035767,2]
[388217202,1759044651984,-608.27281064,0.00035767,2]
[388217203,1759044651994,-500.0,0.00035767,2]
[388217204,1759044652003,-500.0,0.00035767,2]
[388217205,1759044652013,-500.0,0.00035767,2]
[388217206,1759044652023,-1871.66390537,0.00035773,2]
[388217207,1759044652036,-263.13961411,0.00035773,2]
[388217208,1759044652045,-151.0,0.00035779,7]
[388217209,1759044652055,-151.0,0.00035779,7]
[388217210,1759044652065,-500.0,0.00035779,7]
[388217211,1759044652074,-151.0,0.00035779,7]
[388217212,1759044652084,-151.0,0.00035779,7]
[388217213,1759044652094,-151.0,0.00035779,7]
[388217214,1759044652104,-151.0,0.00035779,7]
[388217215,1759044652114,-167.6465756,0.00035785,9]
[388217216,1759044652123,-334.25818531,0.00035792,120]
[388217217,1759044652133,-273.0,0.00035794,120]
[388217218,1759044652142,-703.55562498,0.00035823,4]
[388217219,1759044652154,-3430.85880594,0.00035823,4]
[388217220,1759044652332,-865.58556908,0.00035823,4]
[388217221,1759044652341,-168.0,0.00035831,2]
[388217222,1759044652351,-1000.0,0.0003587,60]
[388217223,1759044652361,-500.0,0.00035873,5]
[388217224,1759044652370,-500.0,0.00035873,5]
[388217225,1759044652379,-30.19419873,0.00035873,5]
[388217226,1759044652391,-469.80580127,0.00035873,5]
[388217227,1759044652401,-504.43611285,0.00035873,5]
[388217228,1759044652411,-500.0,0.00035873,5]
[388217229,1759044652420,-500.0,0.00035873,5]
[388217230,1759044652430,-515.38250462,0.00035873,5]
[388217231,1759044652440,-500.0,0.00035873,5]
[388217232,1759044652450,-500.0,0.00035873,5]
[388217233,1759044652459,-500.0,0.00035873,5]
[388217234,1759044652468,-273.0,0.00035873,2]
[388217235,1759044652479,-160.0,0.0003589,4]
[388217236,1759044652488,-215.23953424,0.0003589,5]
[388217237,1759044652502,-480.0,0.0003589,9]
[388217238,1759044652513,-545.87895619,0.0003589,9]
[388217239,1759044652523,-480.0,0.0003589,9]
[388217240,1759044652533,-480.0,0.0003589,9]
[388217241,1759044652544,-480.0,0.0003589,9]
[388217242,1759044652553,-539.4,0.0003589,9]
[388217243,1759044652563,-539.4,0.0003589,9]
[388217244,1759044652573,-498.69054631,0.0003589,9]
[388217245,1759044652583,-1160.09,0.0003589,9]
[388217246,1759044652593,-480.0,0.0003589,9]
[388217247,1759044652603,-480.0,0.0003589,9]
[388217248,1759044652613,-480.0,0.0003589,9]
[388217249,1759044652623,-480.0,0.0003589,9]
[388217250,1759044652633,-480.0,0.0003589,9]
[388217251,1759044652643,-480.0,0.0003589,9]
[388217252,1759044652653,-202.89580679,0.0003589,9]
[388217253,1759044653102,-247.63082468,0.00034576,2]
[388217254,1759044653113,-277.10419321,0.0003589,9]
[388217255,1759044653122,-480.0,0.0003589,9]
[388217256,1759044653134,-480.0,0.0003589,9]
[388217257,1759044653144,-480.0,0.0003589,9]
[388217258,1759044653154,-180.84047765,0.0003589,9]
[388217259,1759044653170,-578.59952235,0.0003589,9]
[388217260,1759044653180,-480.0,0.0003589,9]
[388217261,1759044653190,-874.93764543,0.0003589,9]
[388217307,1759045076853,-233.82138094,0.00029,10]
[388217308,1759045076882,-177.6311785,0.00031938,2]
[388217309,1759045076911,-189.35579204,0.00032048,2]
[388217310,1759045076942,-168.288335,0.00032562,15]
[388217311,1759045076971,-277.98566,0.00032877,2]
[388217312,1759045096608,441.89096024,0.00032835,30]
[388217313,1759045114710,250.0,0.00032543,2]
[388217320,1759045207247,905.83530704,0.00033,2]
[388217321,1759045270686,189.35579204,0.00033,2]
[388217322,1759045297174,905.83530704,0.00033,2]
[388217323,1759045297808,189.35579204,0.00028,10]
[388217324,1759045413327,299.26,0.00031274,14]
[388217325,1759045413563,299.26,0.00031822,15]
[388217326,1759045413800,299.26,0.0003237,16]
[388217327,1759045414031,299.26,0.00032918,17]
[388217328,1759045546101,-299.26,0.00033466,18]
[388217329,1759045546121,-25.54798222,0.0003365,2]
[388217331,1759045632090,-160.0,0.00033507,3]
[388217332,1759045632116,-233.82138094,0.00033649,2]
[388217333,1759045632138,-500.0,0.00033813,120]
[388217334,1759045632161,-400.0,0.00033814,2]
[388217335,1759045632182,-500.0,0.00033815,7]
[388217336,1759045632204,-500.0,0.00033815,7]
[388217337,1759045632228,-500.0,0.00033815,7]